Workbook

Sheet Info
A1: Subsurface stormflow
A2: SSF 0.25m = Subsurface Stormflow at 0.25 m depth below surface
A3: SSF 1m = Subsurface Stormflow at 1 m depth below surface
A5: Data sampling resolution
A6: Data was measured in an hourly time interval from 02.11.2009 to 22.12.2010
A7: Data was measured in a 10 minutes time interval from 22.12.2010 to 02.11.2011
A8: Time serie is not continous (see excel file "data serie 201010_201111").

Sheet Hourly SSF Data
A1: Lateral sub-surface flow (at a depth of 0.25 m, and 1.00 m respectively)
A2: Information about the method: see Master thesis of Seraina Kauer
A3: Date | B3: Time | C3: SSF 0.25m [# tips] | D3: SSF 1m [# tips] | E3: SSF 0.25m [L] | F3: SSF 1m [L] | G3: SSF 0.25m [mm] | H3: SSF 1m [mm]
A4: 2010-07-21 | B4: 15:05:00 | C4: 0 | D4: 0 | E4: =C4*0.098 -> 0 | F4: =D4*0.098 -> 0 | G4: =E4/200 -> 0 | H4: =F4/200 -> 0
A5: 2010-07-21 | B5: 16:02:00 | C5: 0 | D5: 6 | E5: =C5*0.098 -> 0 | F5: =D5*0.098 -> 0.588 | G5: =E5/200 -> 0 | H5: =F5/200 -> 0.00294
A6: 2010-07-21 | B6: 17:02:00 | C6: 0 | D6: 0 | E6: 0 | F6: 0 | G6: 0 | H6: 0
A7: 2010-07-21 | B7: 18:02:00 | C7: 0 | D7: 6 | E7: 0 | F7: 0.588 | G7: 0 | H7: 0.00294
A8: 2010-07-21 | B8: 19:02:00 | C8: 0 | D8: 0 | E8: 0 | F8: 0 | G8: 0 | H8: 0
A9: 2010-07-21 | B9: 20:02:00 | C9: 0 | D9: 0 | E9: 0 | F9: 0 | G9: 0 | H9: 0
A10: 2010-07-21 | B10: 21:02:00 | C10: 0 | D10: 1 | E10: 0 | F10: 0.098 | G10: 0 | H10: 0.00049
A11: 2010-07-21 | B11: 22:02:00 | C11: 0 | D11: 0 | E11: 0 | F11: 0 | G11: 0 | H11: 0
A12: 2010-07-21 | B12: 23:02:00 | C12: 0 | D12: 0 | E12: 0 | F12: 0 | G12: 0 | H12: 0
A13: 2010-07-22 | B13: 00:02:00 | C13: 0 | D13: 0 | E13: 0 | F13: 0 | G13: 0 | H13: 0
A14: 2010-07-22 | B14: 01:02:00 | C14: 0 | D14: 1 | E14: 0 | F14: 0.098 | G14: 0 | H14: 0.00049
A15: 2010-07-22 | B15: 02:02:00 | C15: 0 | D15: 0 | E15: 0 | F15: 0 | G15: 0 | H15: 0
A16: 2010-07-22 | B16: 03:02:00 | C16: 0 | D16: 0 | E16: 0 | F16: 0 | G16: 0 | H16: 0
A17: 2010-07-22 | B17: 04:02:00 | C17: 0 | D17: 0 | E17: 0 | F17: 0 | G17: 0 | H17: 0
A18: 2010-07-22 | B18: 05:02:00 | C18: 0 | D18: 0 | E18: 0 | F18: 0 | G18: 0 | H18: 0
A19: 2010-07-22 | B19: 06:02:00 | C19: 0 | D19: 0 | E19: 0 | F19: 0 | G19: 0 | H19: 0
A20: 2010-07-22 | B20: 07:02:00 | C20: 0 | D20: 0 | E20: 0 | F20: 0 | G20: 0 | H20: 0
A21: 2010-07-22 | B21: 08:02:00 | C21: 0 | D21: 0 | E21: 0 | F21: 0 | G21: 0 | H21: 0
A22: 2010-07-22 | B22: 09:02:00 | C22: 0 | D22: 0 | E22: 0 | F22: 0 | G22: 0 | H22: 0
A23: 2010-07-22 | B23: 10:02:00 | C23: 0 | D23: 0 | E23: 0 | F23: 0 | G23: 0 | H23: 0
A24: 2010-07-22 | B24: 11:02:00 | C24: 0 | D24: 0 | E24: 0 | F24: 0 | G24: 0 | H24: 0
A25: 2010-07-22 | B25: 12:02:00 | C25: 0 | D25: 0 | E25: 0 | F25: 0 | G25: 0 | H25: 0
A26: 2010-07-22 | B26: 13:02:00 | C26: 0 | D26: 0 | E26: 0 | F26: 0 | G26: 0 | H26: 0
A27: 2010-07-22 | B27: 14:02:00 | C27: 0 | D27: 0 | E27: 0 | F27: 0 | G27: 0 | H27: 0
A28: 2010-07-22 | B28: 15:02:00 | C28: 0 | D28: 0 | E28: 0 | F28: 0 | G28: 0 | H28: 0
A29: 2010-07-22 | B29: 16:02:00 | C29: 2 | D29: 0 | E29: 0.196 | F29: 0 | G29: 0.00098 | H29: 0
A30: 2010-07-22 | B30: 17:02:00 | C30: 0 | D30: 0 | E30: 0 | F30: 0 | G30: 0 | H30: 0
A31: 2010-07-22 | B31: 18:02:00 | C31: 1 | D31: 0 | E31: 0.098 | F31: 0 | G31: 0.00049 | H31: 0
A32: 2010-07-22 | B32: 19:02:00 | C32: 0 | D32: 0 | E32: 0 | F32: 0 | G32: 0 | H32: 0
A33: 2010-07-22 | B33: 20:02:00 | C33: 0 | D33: 0 | E33: 0 | F33: 0 | G33: 0 | H33: 0
A34: 2010-07-22 | B34: 21:02:00 | C34: 0 | D34: 0 | E34: 0 | F34: 0 | G34: 0 | H34: 0
A35: 2010-07-22 | B35: 22:02:00 | C35: 1 | D35: 0 | E35: 0.098 | F35: 0 | G35: 0.00049 | H35: 0
A36: 2010-07-22 | B36: 23:02:00 | C36: 0 | D36: 0 | E36: 0 | F36: 0 | G36: 0 | H36: 0
A37: 2010-07-23 | B37: 00:02:00 | C37: 0 | D37: 0 | E37: 0 | F37: 0 | G37: 0 | H37: 0
A38: 2010-07-23 | B38: 01:02:00 | C38: 1 | D38: 0 | E38: 0.098 | F38: 0 | G38: 0.00049 | H38: 0
A39: 2010-07-23 | B39: 02:02:00 | C39: 0 | D39: 0 | E39: 0 | F39: 0 | G39: 0 | H39: 0
A40: 2010-07-23 | B40: 03:02:00 | C40: 0 | D40: 0 | E40: 0 | F40: 0 | G40: 0 | H40: 0
A41: 2010-07-23 | B41: 04:02:00 | C41: 0 | D41: 0 | E41: 0 | F41: 0 | G41: 0 | H41: 0
A42: 2010-07-23 | B42: 05:02:00 | C42: 0 | D42: 0 | E42: 0 | F42: 0 | G42: 0 | H42: 0
A43: 2010-07-23 | B43: 06:02:00 | C43: 0 | D43: 0 | E43: 0 | F43: 0 | G43: 0 | H43: 0
A44: 2010-07-23 | B44: 07:02:00 | C44: 0 | D44: 0 | E44: 0 | F44: 0 | G44: 0 | H44: 0
A45: 2010-07-23 | B45: 08:02:00 | C45: 0 | D45: 0 | E45: 0 | F45: 0 | G45: 0 | H45: 0
A46: 2010-07-23 | B46: 09:02:00 | C46: 1 | D46: 28 | E46: 0.098 | F46: 2.744 | G46: 0.00049 | H46: 0.01372
A47: 2010-07-23 | B47: 10:02:00 | C47: 0 | D47: 26 | E47: 0 | F47: 2.548 | G47: 0 | H47: 0.01274
A48: 2010-07-23 | B48: 11:02:00 | C48: 0 | D48: 0 | E48: 0 | F48: 0 | G48: 0 | H48: 0
A49: 2010-07-23 | B49: 12:02:00 | C49: 1 | D49: 27 | E49: 0.098 | F49: 2.646 | G49: 0.00049 | H49: 0.01323
A50: 2010-07-23 | B50: 13:02:00 | C50: 0 | D50: 42 | E50: 0 | F50: 4.116 | G50: 0 | H50: 0.02058
A51: 2010-07-23 | B51: 14:02:00 | C51: 0 | D51: 0 | E51: 0 | F51: 0 | G51: 0 | H51: 0
A52: 2010-07-23 | B52: 15:02:00 | C52: 1 | D52: 19 | E52: 0.098 | F52: 1.862 | G52: 0.00049 | H52: 0.00931
A53: 2010-07-23 | B53: 16:02:00 | C53: 0 | D53: 257 | E53: 0 | F53: 25.186 | G53: 0 | H53: 0.12593
A54: 2010-07-23 | B54: 16:55:00 | C54: 0 | D54: 27 | E54: 0 | F54: 2.646 | G54: 0 | H54: 0.01323
A55: 2010-07-23 | B55: 17:11:00 | C55: 0 | D55: 51 | E55: 0 | F55: 4.998 | G55: 0 | H55: 0.02499
A56: 2010-07-23 | B56: 17:17:00 | C56: 0 | D56: 33 | E56: 0 | F56: 3.234 | G56: 0 | H56: 0.01617
A57: 2010-07-23 | B57: 17:29:00 | C57: 0 | D57: 34 | E57: 0 | F57: 3.332 | G57: 0 | H57: 0.01666
A58: 2010-07-23 | B58: 17:48:00 | C58: 0 | D58: 0 | E58: 0 | F58: 0 | G58: 0 | H58: 0
A59: 2010-07-23 | B59: 18:01:00 | C59: 0 | D59: 28 | E59: 0 | F59: 2.744 | G59: 0 | H59: 0.01372
A60: 2010-07-23 | B60: 18:15:00 | C60: 1 | D60: 59 | E60: 0.098 | F60: 5.782 | G60: 0.00049 | H60: 0.02891
A61: 2010-07-23 | B61: 18:34:00 | C61: 0 | D61: 126 | E61: 0 | F61: 12.348 | G61: 0 | H61: 0.06174
A62: 2010-07-23 | B62: 18:45:00 | C62: 0 | D62: 26 | E62: 0 | F62: 2.548 | G62: 0 | H62: 0.01274
A63: 2010-07-23 | B63: 19:02:00 | C63: 0 | D63: 90 | E63: 0 | F63: 8.82 | G63: 0 | H63: 0.0441
A64: 2010-07-23 | B64: 19:17:00 | C64: 0 | D64: 38 | E64: 0 | F64: 3.724 | G64: 0 | H64: 0.01862
A65: 2010-07-23 | B65: 19:34:00 | C65: 0 | D65: 33 | E65: 0 | F65: 3.234 | G65: 0 | H65: 0.01617
A66: 2010-07-23 | B66: 19:45:00 | C66: 0 | D66: 27 | E66: 0 | F66: 2.646 | G66: 0 | H66: 0.01323
A67: 2010-07-23 | B67: 20:02:00 | C67: 0 | D67: 247 | E67: 0 | F67: 24.206 | G67: 0 | H67: 0.12103
A68: 2010-07-23 | B68: 21:02:00 | C68: 0 | D68: 687 | E68: 0 | F68: 67.326 | G68: 0 | H68: 0.33663
A69: 2010-07-23 | B69: 22:02:00 | C69: 0 | D69: 421 | E69: =C69*0.098 -> 0 | F69: =D69*0.098 -> 41.258 | G69: =E69/200 -> 0 | H69: =F69/200 -> 0.20629
A70: 2010-07-23 | B70: 23:02:00 | C70: 0 | D70: 11 | E70: 0 | F70: 1.078 | G70: 0 | H70: 0.00539
A71: 2010-07-24 | B71: 00:02:00 | C71: 0 | D71: 3 | E71: 0 | F71: 0.294 | G71: 0 | H71: 0.00147
A72: 2010-07-24 | B72: 01:02:00 | C72: 0 | D72: 85 | E72: 0 | F72: 8.33 | G72: 0 | H72: 0.04165
A73: 2010-07-24 | B73: 02:02:00 | C73: 0 | D73: 26 | E73: 0 | F73: 2.548 | G73: 0 | H73: 0.01274
A74: 2010-07-24 | B74: 03:02:00 | C74: 0 | D74: 28 | E74: 0 | F74: 2.744 | G74: 0 | H74: 0.01372
A75: 2010-07-24 | B75: 04:02:00 | C75: 0 | D75: 446 | E75: 0 | F75: 43.708 | G75: 0 | H75: 0.21854
A76: 2010-07-24 | B76: 05:02:00 | C76: 1 | D76: 519 | E76: 0.098 | F76: 50.862 | G76: 0.00049 | H76: 0.25431
A77: 2010-07-24 | B77: 06:02:00 | C77: 0 | D77: 23 | E77: 0 | F77: 2.254 | G77: 0 | H77: 0.01127
A78: 2010-07-24 | B78: 07:02:00 | C78: 0 | D78: 1 | E78: 0 | F78: 0.098 | G78: 0 | H78: 0.00049
A79: 2010-07-24 | B79: 08:02:00 | C79: 0 | D79: 6 | E79: 0 | F79: 0.588 | G79: 0 | H79: 0.00294
A80: 2010-07-24 | B80: 09:02:00 | C80: 0 | D80: 0 | E80: 0 | F80: 0 | G80: 0 | H80: 0
A81: 2010-07-24 | B81: 10:02:00 | C81: 0 | D81: 0 | E81: 0 | F81: 0 | G81: 0 | H81: 0
A82: 2010-07-24 | B82: 11:02:00 | C82: 0 | D82: 0 | E82: 0 | F82: 0 | G82: 0 | H82: 0
A83: 2010-07-24 | B83: 12:02:00 | C83: 0 | D83: 0 | E83: 0 | F83: 0 | G83: 0 | H83: 0
A84: 2010-07-24 | B84: 13:02:00 | C84: 1 | D84: 395 | E84: 0.098 | F84: 38.71 | G84: 0.00049 | H84: 0.19355
A85: 2010-07-24 | B85: 14:02:00 | C85: 0 | D85: 0 | E85: 0 | F85: 0 | G85: 0 | H85: 0
A86: 2010-07-24 | B86: 15:02:00 | C86: 0 | D86: 0 | E86: 0 | F86: 0 | G86: 0 | H86: 0
A87: 2010-07-24 | B87: 16:02:00 | C87: 0 | D87: 0 | E87: 0 | F87: 0 | G87: 0 | H87: 0
A88: 2010-07-24 | B88: 17:02:00 | C88: 0 | D88: 0 | E88: 0 | F88: 0 | G88: 0 | H88: 0
A89: 2010-07-24 | B89: 18:02:00 | C89: 0 | D89: 0 | E89: 0 | F89: 0 | G89: 0 | H89: 0
A90: 2010-07-24 | B90: 19:02:00 | C90: 0 | D90: 0 | E90: 0 | F90: 0 | G90: 0 | H90: 0
A91: 2010-07-24 | B91: 20:02:00 | C91: 0 | D91: 13 | E91: 0 | F91: 1.274 | G91: 0 | H91: 0.00637
A92: 2010-07-24 | B92: 21:02:00 | C92: 0 | D92: 21 | E92: 0 | F92: 2.058 | G92: 0 | H92: 0.01029
A93: 2010-07-24 | B93: 22:02:00 | C93: 0 | D93: 2 | E93: 0 | F93: 0.196 | G93: 0 | H93: 0.00098
A94: 2010-07-24 | B94: 23:02:00 | C94: 0 | D94: 43 | E94: 0 | F94: 4.214 | G94: 0 | H94: 0.02107
A95: 2010-07-25 | B95: 00:02:00 | C95: 0 | D95: 146 | E95: 0 | F95: 14.308 | G95: 0 | H95: 0.07154
A96: 2010-07-25 | B96: 01:02:00 | C96: 0 | D96: 0 | E96: 0 | F96: 0 | G96: 0 | H96: 0
A97: 2010-07-25 | B97: 02:02:00 | C97: 0 | D97: 0 | E97: 0 | F97: 0 | G97: 0 | H97: 0
A98: 2010-07-25 | B98: 03:02:00 | C98: 0 | D98: 0 | E98: 0 | F98: 0 | G98: 0 | H98: 0
A99: 2010-07-25 | B99: 04:02:00 | C99: 0 | D99: 0 | E99: 0 | F99: 0 | G99: 0 | H99: 0
A100: 2010-07-25 | B100: 05:02:00 | C100: 0 | D100: 0 | E100: 0 | F100: 0 | G100: 0 | H100: 0
A101: 2010-07-25 | B101: 06:02:00 | C101: 0 | D101: 0 | E101: 0 | F101: 0 | G101: 0 | H101: 0
A102: 2010-07-25 | B102: 07:02:00 | C102: 0 | D102: 0 | E102: 0 | F102: 0 | G102: 0 | H102: 0
A103: 2010-07-25 | B103: 08:02:00 | C103: 0 | D103: 0 | E103: 0 | F103: 0 | G103: 0 | H103: 0
A104: 2010-07-25 | B104: 09:02:00 | C104: 0 | D104: 0 | E104: 0 | F104: 0 | G104: 0 | H104: 0
A105: 2010-07-25 | B105: 10:02:00 | C105: 0 | D105: 0 | E105: 0 | F105: 0 | G105: 0 | H105: 0
A106: 2010-08-25 | B106: 16:02:00 | C106: 0 | D106: 5 | E106: 0 | F106: 0.49 | G106: 0 | H106: 0.00245
A107: 2010-08-25 | B107: 17:02:00 | C107: 0 | D107: 12 | E107: 0 | F107: 1.176 | G107: 0 | H107: 0.00588
A108: 2010-08-25 | B108: 18:02:00 | C108: 0 | D108: 12 | E108: 0 | F108: 1.176 | G108: 0 | H108: 0.00588
A109: 2010-08-25 | B109: 19:02:00 | C109: 0 | D109: 10 | E109: 0 | F109: 0.98 | G109: 0 | H109: 0.0049
A110: 2010-08-25 | B110: 20:02:00 | C110: 0 | D110: 10 | E110: 0 | F110: 0.98 | G110: 0 | H110: 0.0049
A111: 2010-08-25 | B111: 21:02:00 | C111: 0 | D111: 9 | E111: 0 | F111: 0.882 | G111: 0 | H111: 0.00441
A112: 2010-08-25 | B112: 22:02:00 | C112: 0 | D112: 8 | E112: 0 | F112: 0.784 | G112: 0 | H112: 0.00392
A113: 2010-08-25 | B113: 23:02:00 | C113: 0 | D113: 6 | E113: 0 | F113: 0.588 | G113: 0 | H113: 0.00294
A114: 2010-08-26 | B114: 00:02:00 | C114: 0 | D114: 6 | E114: 0 | F114: 0.588 | G114: 0 | H114: 0.00294
A115: 2010-08-26 | B115: 01:02:00 | C115: 0 | D115: 6 | E115: 0 | F115: 0.588 | G115: 0 | H115: 0.00294
A116: 2010-08-26 | B116: 02:02:00 | C116: 0 | D116: 5 | E116: 0 | F116: 0.49 | G116: 0 | H116: 0.00245
A117: 2010-08-26 | B117: 03:02:00 | C117: 0 | D117: 5 | E117: 0 | F117: 0.49 | G117: 0 | H117: 0.00245
A118: 2010-08-26 | B118: 04:02:00 | C118: 0 | D118: 5 | E118: 0 | F118: 0.49 | G118: 0 | H118: 0.00245
A119: 2010-08-26 | B119: 05:02:00 | C119: 0 | D119: 4 | E119: 0 | F119: 0.392 | G119: 0 | H119: 0.00196
A120: 2010-08-26 | B120: 06:02:00 | C120: 0 | D120: 4 | E120: 0 | F120: 0.392 | G120: 0 | H120: 0.00196
A121: 2010-08-26 | B121: 07:02:00 | C121: 0 | D121: 3 | E121: 0 | F121: 0.294 | G121: 0 | H121: 0.00147
A122: 2010-08-26 | B122: 08:02:00 | C122: 0 | D122: 3 | E122: 0 | F122: 0.294 | G122: 0 | H122: 0.00147
A123: 2010-08-26 | B123: 09:02:00 | C123: 0 | D123: 2 | E123: 0 | F123: 0.196 | G123: 0 | H123: 0.00098
A124: 2010-08-26 | B124: 10:02:00 | C124: 0 | D124: 2 | E124: 0 | F124: 0.196 | G124: 0 | H124: 0.00098
A125: 2010-08-26 | B125: 11:02:00 | C125: 0 | D125: 2 | E125: 0 | F125: 0.196 | G125: 0 | H125: 0.00098
A126: 2010-08-26 | B126: 12:02:00 | C126: 0 | D126: 1 | E126: 0 | F126: 0.098 | G126: 0 | H126: 0.00049
A127: 2010-08-26 | B127: 13:02:00 | C127: 0 | D127: 1 | E127: 0 | F127: 0.098 | G127: 0 | H127: 0.00049
A128: 2010-08-26 | B128: 14:02:00 | C128: 0 | D128: 1 | E128: 0 | F128: 0.098 | G128: 0 | H128: 0.00049
A129: 2010-08-26 | B129: 15:02:00 | C129: 0 | D129: 0 | E129: 0 | F129: 0 | G129: 0 | H129: 0
A130: 2010-08-26 | B130: 16:02:00 | C130: 0 | D130: 0 | E130: 0 | F130: 0 | G130: 0 | H130: 0
A131: 2010-08-26 | B131: 17:02:00 | C131: 0 | D131: 0 | E131: 0 | F131: 0 | G131: 0 | H131: 0
A132: 2010-08-26 | B132: 18:02:00 | C132: 0 | D132: 0 | E132: 0 | F132: 0 | G132: 0 | H132: 0
A133: 2010-08-26 | B133: 19:02:00 | C133: 0 | D133: 0 | E133: =C133*0.098 -> 0 | F133: =D133*0.098 -> 0 | G133: =E133/200 -> 0 | H133: =F133/200 -> 0
A134: 2010-08-26 | B134: 20:02:00 | C134: 0 | D134: 0 | E134: 0 | F134: 0 | G134: 0 | H134: 0
A135: 2010-08-26 | B135: 21:02:00 | C135: 0 | D135: 0 | E135: 0 | F135: 0 | G135: 0 | H135: 0
A136: 2010-08-26 | B136: 22:02:00 | C136: 0 | D136: 0 | E136: 0 | F136: 0 | G136: 0 | H136: 0
A137: 2010-08-26 | B137: 23:02:00 | C137: 0 | D137: 0 | E137: 0 | F137: 0 | G137: 0 | H137: 0
A138: 2010-08-27 | B138: 00:02:00 | C138: 0 | D138: 0 | E138: 0 | F138: 0 | G138: 0 | H138: 0
A139: 2010-08-27 | B139: 01:02:00 | C139: 0 | D139: 0 | E139: 0 | F139: 0 | G139: 0 | H139: 0
A140: 2010-08-27 | B140: 02:02:00 | C140: 0 | D140: 0 | E140: 0 | F140: 0 | G140: 0 | H140: 0
A141: 2010-08-27 | B141: 03:02:00 | C141: 0 | D141: 0 | E141: 0 | F141: 0 | G141: 0 | H141: 0
A142: 2010-08-27 | B142: 04:02:00 | C142: 0 | D142: 0 | E142: 0 | F142: 0 | G142: 0 | H142: 0
A143: 2010-08-27 | B143: 05:02:00 | C143: 0 | D143: 0 | E143: 0 | F143: 0 | G143: 0 | H143: 0
A144: 2010-08-27 | B144: 06:02:00 | C144: 0 | D144: 0 | E144: 0 | F144: 0 | G144: 0 | H144: 0
A145: 2010-08-27 | B145: 07:02:00 | C145: 0 | D145: 0 | E145: 0 | F145: 0 | G145: 0 | H145: 0
A146: 2010-08-27 | B146: 08:02:00 | C146: 0 | D146: 0 | E146: 0 | F146: 0 | G146: 0 | H146: 0
A147: 2010-08-27 | B147: 09:02:00 | C147: 0 | D147: 7 | E147: 0 | F147: 0.686 | G147: 0 | H147: 0.00343
A148: 2010-08-27 | B148: 10:02:00 | C148: 83 | D148: 501 | E148: 8.134 | F148: 49.098 | G148: 0.04067 | H148: 0.24549
A149: 2010-08-27 | B149: 11:02:00 | C149: 96 | D149: 931 | E149: 9.408 | F149: 91.238 | G149: 0.04704 | H149: 0.45619
A150: 2010-08-27 | B150: 12:02:00 | C150: 21 | D150: 750 | E150: 2.058 | F150: 73.5 | G150: 0.01029 | H150: 0.3675
A151: 2010-08-27 | B151: 13:02:00 | C151: 0 | D151: 509 | E151: 0 | F151: 49.882 | G151: 0 | H151: 0.24941
A152: 2010-08-27 | B152: 14:02:00 | C152: 0 | D152: 333 | E152: 0 | F152: 32.634 | G152: 0 | H152: 0.16317
A153: 2010-08-27 | B153: 15:02:00 | C153: 0 | D153: 229 | E153: 0 | F153: 22.442 | G153: 0 | H153: 0.11221
A154: 2010-08-27 | B154: 16:02:00 | C154: 0 | D154: 182 | E154: 0 | F154: 17.836 | G154: 0 | H154: 0.08918
A155: 2010-08-27 | B155: 17:02:00 | C155: 0 | D155: 149 | E155: 0 | F155: 14.602 | G155: 0 | H155: 0.07301
A156: 2010-08-27 | B156: 18:02:00 | C156: 2 | D156: 201 | E156: 0.196 | F156: 19.698 | G156: 0.00098 | H156: 0.09849
A157: 2010-08-27 | B157: 19:02:00 | C157: 19 | D157: 793 | E157: 1.862 | F157: 77.714 | G157: 0.00931 | H157: 0.38857
A158: 2010-08-27 | B158: 20:02:00 | C158: 50 | D158: 882 | E158: 4.9 | F158: 86.436 | G158: 0.0245 | H158: 0.43218
A159: 2010-08-27 | B159: 21:02:00 | C159: 67 | D159: 946 | E159: 6.566 | F159: 92.708 | G159: 0.03283 | H159: 0.46354
A160: 2010-08-27 | B160: 22:02:00 | C160: 4 | D160: 731 | E160: 0.392 | F160: 71.638 | G160: 0.00196 | H160: 0.35819
A161: 2010-08-27 | B161: 23:02:00 | C161: 52 | D161: 1036 | E161: 5.096 | F161: 101.528 | G161: 0.02548 | H161: 0.50764
A162: 2010-08-28 | B162: 00:02:00 | C162: 709 | D162: 1328 | E162: 69.482 | F162: 130.144 | G162: 0.34741 | H162: 0.65072
A163: 2010-08-28 | B163: 01:02:00 | C163: 577 | D163: 1351 | E163: 56.546 | F163: 132.398 | G163: 0.28273 | H163: 0.66199
A164: 2010-08-28 | B164: 02:02:00 | C164: 160 | D164: 1243 | E164: 15.68 | F164: 121.814 | G164: 0.0784 | H164: 0.60907
A165: 2010-08-28 | B165: 03:02:00 | C165: 10 | D165: 1001 | E165: 0.98 | F165: 98.098 | G165: 0.0049 | H165: 0.49049
A166: 2010-08-28 | B166: 04:02:00 | C166: 0 | D166: 740 | E166: 0 | F166: 72.52 | G166: 0 | H166: 0.3626
A167: 2010-08-28 | B167: 05:02:00 | C167: 87 | D167: 1172 | E167: 8.526 | F167: 114.856 | G167: 0.04263 | H167: 0.57428
A168: 2010-08-28 | B168: 06:02:00 | C168: 42 | D168: 1093 | E168: 4.116 | F168: 107.114 | G168: 0.02058 | H168: 0.53557
A169: 2010-08-28 | B169: 07:02:00 | C169: 1 | D169: 800 | E169: 0.098 | F169: 78.4 | G169: 0.00049 | H169: 0.392
A170: 2010-08-28 | B170: 08:02:00 | C170: 111 | D170: 1116 | E170: 10.878 | F170: 109.368 | G170: 0.05439 | H170: 0.54684
A171: 2010-08-28 | B171: 09:02:00 | C171: 33 | D171: 1002 | E171: 3.234 | F171: 98.196 | G171: 0.01617 | H171: 0.49098
A172: 2010-08-28 | B172: 10:02:00 | C172: 0 | D172: 695 | E172: 0 | F172: 68.11 | G172: 0 | H172: 0.34055
A173: 2010-08-28 | B173: 11:02:00 | C173: 0 | D173: 546 | E173: 0 | F173: 53.508 | G173: 0 | H173: 0.26754
A174: 2010-08-28 | B174: 12:02:00 | C174: 0 | D174: 545 | E174: 0 | F174: 53.41 | G174: 0 | H174: 0.26705
A175: 2010-08-28 | B175: 13:02:00 | C175: 80 | D175: 1122 | E175: 7.84 | F175: 109.956 | G175: 0.0392 | H175: 0.54978
A176: 2010-08-28 | B176: 14:02:00 | C176: 31 | D176: 965 | E176: 3.038 | F176: 94.57 | G176: 0.01519 | H176: 0.47285
A177: 2010-08-28 | B177: 15:02:00 | C177: 0 | D177: 727 | E177: 0 | F177: 71.246 | G177: 0 | H177: 0.35623
A178: 2010-08-28 | B178: 16:02:00 | C178: 0 | D178: 583 | E178: 0 | F178: 57.134 | G178: 0 | H178: 0.28567
A179: 2010-08-28 | B179: 17:02:00 | C179: 0 | D179: 489 | E179: 0 | F179: 47.922 | G179: 0 | H179: 0.23961
A180: 2010-08-28 | B180: 18:02:00 | C180: 31 | D180: 950 | E180: 3.038 | F180: 93.1 | G180: 0.01519 | H180: 0.4655
A181: 2010-08-28 | B181: 19:02:00 | C181: 28 | D181: 914 | E181: 2.744 | F181: 89.572 | G181: 0.01372 | H181: 0.44786
A182: 2010-08-28 | B182: 20:02:00 | C182: 0 | D182: 656 | E182: 0 | F182: 64.288 | G182: 0 | H182: 0.32144
A183: 2010-08-28 | B183: 21:02:00 | C183: 0 | D183: 508 | E183: 0 | F183: 49.784 | G183: 0 | H183: 0.24892
A184: 2010-08-28 | B184: 22:02:00 | C184: 0 | D184: 409 | E184: 0 | F184: 40.082 | G184: 0 | H184: 0.20041
A185: 2010-08-28 | B185: 23:02:00 | C185: 0 | D185: 329 | E185: 0 | F185: 32.242 | G185: 0 | H185: 0.16121
A186: 2010-08-29 | B186: 00:02:00 | C186: 0 | D186: 276 | E186: 0 | F186: 27.048 | G186: 0 | H186: 0.13524
A187: 2010-08-29 | B187: 01:02:00 | C187: 0 | D187: 234 | E187: 0 | F187: 22.932 | G187: 0 | H187: 0.11466
A188: 2010-08-29 | B188: 02:02:00 | C188: 0 | D188: 203 | E188: 0 | F188: 19.894 | G188: 0 | H188: 0.09947
A189: 2010-08-29 | B189: 03:02:00 | C189: 0 | D189: 180 | E189: 0 | F189: 17.64 | G189: 0 | H189: 0.0882
A190: 2010-08-29 | B190: 04:02:00 | C190: 0 | D190: 159 | E190: 0 | F190: 15.582 | G190: 0 | H190: 0.07791
A191: 2010-08-29 | B191: 05:02:00 | C191: 0 | D191: 143 | E191: 0 | F191: 14.014 | G191: 0 | H191: 0.07007
A192: 2010-08-29 | B192: 06:02:00 | C192: 0 | D192: 129 | E192: 0 | F192: 12.642 | G192: 0 | H192: 0.06321
A193: 2010-08-29 | B193: 07:02:00 | C193: 0 | D193: 116 | E193: 0 | F193: 11.368 | G193: 0 | H193: 0.05684
A194: 2010-08-29 | B194: 08:02:00 | C194: 0 | D194: 106 | E194: 0 | F194: 10.388 | G194: 0 | H194: 0.05194
A195: 2010-08-29 | B195: 09:02:00 | C195: 0 | D195: 94 | E195: 0 | F195: 9.212 | G195: 0 | H195: 0.04606
A196: 2010-08-29 | B196: 10:02:00 | C196: 0 | D196: 84 | E196: 0 | F196: 8.232 | G196: 0 | H196: 0.04116
A197: 2010-08-29 | B197: 11:02:00 | C197: 0 | D197: 79 | E197: =C197*0.098 -> 0 | F197: =D197*0.098 -> 7.742 | G197: =E197/200 -> 0 | H197: =F197/200 -> 0.03871
A198: 2010-08-29 | B198: 12:02:00 | C198: 0 | D198: 73 | E198: 0 | F198: 7.154 | G198: 0 | H198: 0.03577
A199: 2010-08-29 | B199: 13:02:00 | C199: 0 | D199: 65 | E199: 0 | F199: 6.37 | G199: 0 | H199: 0.03185
A200: 2010-08-29 | B200: 14:02:00 | C200: 0 | D200: 60 | E200: 0 | F200: 5.88 | G200: 0 | H200: 0.0294
... 2688 more rows

Sheet 10' SSF Data
A1: Date | B1: Time | C1: SSF 0.25m [# tips] | D1: SSF 1m [# tips] | E1: SSF 0.25m [L] | F1: SSF 1m [L] | G1: SSF 0.25m [mm] | H1: SSF 1m [mm]
A2: 2010-12-22 | B2: 15:02:00 | C2: 0 | D2: 0 | E2: =C2*0.098 -> 0 | F2: 0 | G2: =E2/200 -> 0 | H2: 0
A3: 2010-12-22 | B3: 15:22:00 | C3: 0 | D3: 0 | E3: 0 | F3: 0 | G3: 0 | H3: 0
A4: 2010-12-22 | B4: 15:32:00 | C4: 0 | D4: 0 | E4: 0 | F4: 0 | G4: 0 | H4: 0
A5: 2010-12-22 | B5: 15:42:00 | C5: 0 | D5: 0 | E5: 0 | F5: 0 | G5: 0 | H5: 0
A6: 2010-12-22 | B6: 15:52:00 | C6: 0 | D6: 0 | E6: 0 | F6: 0 | G6: 0 | H6: 0
A7: 2010-12-22 | B7: 16:02:00 | C7: 0 | D7: 0 | E7: 0 | F7: 0 | G7: 0 | H7: 0
A8: 2010-12-22 | B8: 16:12:00 | C8: 0 | D8: 0 | E8: 0 | F8: 0 | G8: 0 | H8: 0
A9: 2010-12-22 | B9: 16:22:00 | C9: 0 | D9: 0 | E9: 0 | F9: 0 | G9: 0 | H9: 0
A10: 2010-12-22 | B10: 16:32:00 | C10: 0 | D10: 0 | E10: 0 | F10: 0 | G10: 0 | H10: 0
A11: 2010-12-22 | B11: 16:42:00 | C11: 0 | D11: 0 | E11: 0 | F11: 0 | G11: 0 | H11: 0
A12: 2010-12-22 | B12: 16:52:00 | C12: 0 | D12: 0 | E12: 0 | F12: 0 | G12: 0 | H12: 0
A13: 2010-12-22 | B13: 17:02:00 | C13: 0 | D13: 0 | E13: 0 | F13: 0 | G13: 0 | H13: 0
A14: 2010-12-22 | B14: 17:12:00 | C14: 0 | D14: 0 | E14: 0 | F14: 0 | G14: 0 | H14: 0
A15: 2010-12-22 | B15: 17:22:00 | C15: 0 | D15: 0 | E15: 0 | F15: 0 | G15: 0 | H15: 0
A16: 2010-12-22 | B16: 17:32:00 | C16: 0 | D16: 0 | E16: 0 | F16: 0 | G16: 0 | H16: 0
A17: 2010-12-22 | B17: 17:42:00 | C17: 0 | D17: 0 | E17: 0 | F17: 0 | G17: 0 | H17: 0
A18: 2010-12-22 | B18: 17:52:00 | C18: 0 | D18: 0 | E18: 0 | F18: 0 | G18: 0 | H18: 0
A19: 2010-12-22 | B19: 18:02:00 | C19: 0 | D19: 0 | E19: 0 | F19: 0 | G19: 0 | H19: 0
A20: 2010-12-22 | B20: 18:12:00 | C20: 0 | D20: 0 | E20: 0 | F20: 0 | G20: 0 | H20: 0
A21: 2010-12-22 | B21: 18:22:00 | C21: 0 | D21: 0 | E21: 0 | F21: 0 | G21: 0 | H21: 0
A22: 2010-12-22 | B22: 18:32:00 | C22: 0 | D22: 0 | E22: 0 | F22: 0 | G22: 0 | H22: 0
A23: 2010-12-22 | B23: 18:42:00 | C23: 0 | D23: 0 | E23: 0 | F23: 0 | G23: 0 | H23: 0
A24: 2010-12-22 | B24: 18:52:00 | C24: 0 | D24: 0 | E24: 0 | F24: 0 | G24: 0 | H24: 0
A25: 2010-12-22 | B25: 19:02:00 | C25: 0 | D25: 0 | E25: 0 | F25: 0 | G25: 0 | H25: 0
A26: 2010-12-22 | B26: 19:12:00 | C26: 0 | D26: 0 | E26: 0 | F26: 0 | G26: 0 | H26: 0
A27: 2010-12-22 | B27: 19:22:00 | C27: 0 | D27: 0 | E27: 0 | F27: 0 | G27: 0 | H27: 0
A28: 2010-12-22 | B28: 19:32:00 | C28: 0 | D28: 0 | E28: 0 | F28: 0 | G28: 0 | H28: 0
A29: 2010-12-22 | B29: 19:42:00 | C29: 0 | D29: 0 | E29: 0 | F29: 0 | G29: 0 | H29: 0
A30: 2010-12-22 | B30: 19:52:00 | C30: 0 | D30: 0 | E30: 0 | F30: 0 | G30: 0 | H30: 0
A31: 2010-12-22 | B31: 20:02:00 | C31: 0 | D31: 0 | E31: 0 | F31: 0 | G31: 0 | H31: 0
A32: 2010-12-22 | B32: 20:12:00 | C32: 0 | D32: 0 | E32: 0 | F32: 0 | G32: 0 | H32: 0
A33: 2010-12-22 | B33: 20:22:00 | C33: 0 | D33: 0 | E33: 0 | F33: 0 | G33: 0 | H33: 0
A34: 2010-12-22 | B34: 20:32:00 | C34: 0 | D34: 0 | E34: 0 | F34: 0 | G34: 0 | H34: 0
A35: 2010-12-22 | B35: 20:42:00 | C35: 0 | D35: 0 | E35: 0 | F35: 0 | G35: 0 | H35: 0
A36: 2010-12-22 | B36: 20:52:00 | C36: 0 | D36: 0 | E36: 0 | F36: 0 | G36: 0 | H36: 0
A37: 2010-12-22 | B37: 21:02:00 | C37: 0 | D37: 0 | E37: 0 | F37: 0 | G37: 0 | H37: 0
A38: 2010-12-22 | B38: 21:12:00 | C38: 0 | D38: 0 | E38: 0 | F38: 0 | G38: 0 | H38: 0
A39: 2010-12-22 | B39: 21:22:00 | C39: 0 | D39: 0 | E39: 0 | F39: 0 | G39: 0 | H39: 0
A40: 2010-12-22 | B40: 21:32:00 | C40: 0 | D40: 0 | E40: 0 | F40: 0 | G40: 0 | H40: 0
A41: 2010-12-22 | B41: 21:42:00 | C41: 0 | D41: 0 | E41: 0 | F41: 0 | G41: 0 | H41: 0
A42: 2010-12-22 | B42: 21:52:00 | C42: 0 | D42: 0 | E42: 0 | F42: 0 | G42: 0 | H42: 0
A43: 2010-12-22 | B43: 22:02:00 | C43: 0 | D43: 0 | E43: 0 | F43: 0 | G43: 0 | H43: 0
A44: 2010-12-22 | B44: 22:12:00 | C44: 0 | D44: 0 | E44: 0 | F44: 0 | G44: 0 | H44: 0
A45: 2010-12-22 | B45: 22:22:00 | C45: 0 | D45: 0 | E45: 0 | F45: 0 | G45: 0 | H45: 0
A46: 2010-12-22 | B46: 22:32:00 | C46: 0 | D46: 0 | E46: 0 | F46: 0 | G46: 0 | H46: 0
A47: 2010-12-22 | B47: 22:42:00 | C47: 0 | D47: 0 | E47: 0 | F47: 0 | G47: 0 | H47: 0
A48: 2010-12-22 | B48: 22:52:00 | C48: 0 | D48: 0 | E48: 0 | F48: 0 | G48: 0 | H48: 0
A49: 2010-12-22 | B49: 23:02:00 | C49: 0 | D49: 0 | E49: 0 | F49: 0 | G49: 0 | H49: 0
A50: 2010-12-22 | B50: 23:12:00 | C50: 0 | D50: 0 | E50: 0 | F50: 0 | G50: 0 | H50: 0
A51: 2010-12-22 | B51: 23:22:00 | C51: 0 | D51: 0 | E51: 0 | F51: 0 | G51: 0 | H51: 0
A52: 2010-12-22 | B52: 23:32:00 | C52: 0 | D52: 0 | E52: 0 | F52: 0 | G52: 0 | H52: 0
A53: 2010-12-22 | B53: 23:42:00 | C53: 0 | D53: 0 | E53: 0 | F53: 0 | G53: 0 | H53: 0
A54: 2010-12-22 | B54: 23:52:00 | C54: 0 | D54: 0 | E54: 0 | F54: 0 | G54: 0 | H54: 0
A55: 2010-12-23 | B55: 00:02:00 | C55: 0 | D55: 0 | E55: 0 | F55: 0 | G55: 0 | H55: 0
A56: 2010-12-23 | B56: 00:12:00 | C56: 0 | D56: 0 | E56: 0 | F56: 0 | G56: 0 | H56: 0
A57: 2010-12-23 | B57: 00:22:00 | C57: 0 | D57: 0 | E57: 0 | F57: 0 | G57: 0 | H57: 0
A58: 2010-12-23 | B58: 00:32:00 | C58: 0 | D58: 0 | E58: 0 | F58: 0 | G58: 0 | H58: 0
A59: 2010-12-23 | B59: 00:42:00 | C59: 0 | D59: 0 | E59: 0 | F59: 0 | G59: 0 | H59: 0
A60: 2010-12-23 | B60: 00:52:00 | C60: 0 | D60: 0 | E60: 0 | F60: 0 | G60: 0 | H60: 0
A61: 2010-12-23 | B61: 01:02:00 | C61: 0 | D61: 0 | E61: 0 | F61: 0 | G61: 0 | H61: 0
A62: 2010-12-23 | B62: 01:12:00 | C62: 0 | D62: 0 | E62: =C62*0.098 -> 0 | F62: 0 | G62: =E62/200 -> 0 | H62: 0
A63: 2010-12-23 | B63: 01:22:00 | C63: 0 | D63: 0 | E63: 0 | F63: 0 | G63: 0 | H63: 0
A64: 2010-12-23 | B64: 01:32:00 | C64: 0 | D64: 0 | E64: 0 | F64: 0 | G64: 0 | H64: 0
A65: 2010-12-23 | B65: 01:42:00 | C65: 0 | D65: 0 | E65: 0 | F65: 0 | G65: 0 | H65: 0
A66: 2010-12-23 | B66: 01:52:00 | C66: 0 | D66: 0 | E66: 0 | F66: 0 | G66: 0 | H66: 0
A67: 2010-12-23 | B67: 02:02:00 | C67: 0 | D67: 0 | E67: 0 | F67: 0 | G67: 0 | H67: 0
A68: 2010-12-23 | B68: 02:12:00 | C68: 0 | D68: 0 | E68: 0 | F68: 0 | G68: 0 | H68: 0
A69: 2010-12-23 | B69: 02:22:00 | C69: 0 | D69: 0 | E69: 0 | F69: 0 | G69: 0 | H69: 0
A70: 2010-12-23 | B70: 02:32:00 | C70: 0 | D70: 0 | E70: 0 | F70: 0 | G70: 0 | H70: 0
A71: 2010-12-23 | B71: 02:42:00 | C71: 0 | D71: 0 | E71: 0 | F71: 0 | G71: 0 | H71: 0
A72: 2010-12-23 | B72: 02:52:00 | C72: 0 | D72: 0 | E72: 0 | F72: 0 | G72: 0 | H72: 0
A73: 2010-12-23 | B73: 03:02:00 | C73: 0 | D73: 0 | E73: 0 | F73: 0 | G73: 0 | H73: 0
A74: 2010-12-23 | B74: 03:12:00 | C74: 0 | D74: 0 | E74: 0 | F74: 0 | G74: 0 | H74: 0
A75: 2010-12-23 | B75: 03:22:00 | C75: 0 | D75: 0 | E75: 0 | F75: 0 | G75: 0 | H75: 0
A76: 2010-12-23 | B76: 03:32:00 | C76: 0 | D76: 0 | E76: 0 | F76: 0 | G76: 0 | H76: 0
A77: 2010-12-23 | B77: 03:42:00 | C77: 0 | D77: 0 | E77: 0 | F77: 0 | G77: 0 | H77: 0
A78: 2010-12-23 | B78: 03:52:00 | C78: 0 | D78: 0 | E78: 0 | F78: 0 | G78: 0 | H78: 0
A79: 2010-12-23 | B79: 04:02:00 | C79: 0 | D79: 0 | E79: 0 | F79: 0 | G79: 0 | H79: 0
A80: 2010-12-23 | B80: 04:12:00 | C80: 0 | D80: 0 | E80: 0 | F80: 0 | G80: 0 | H80: 0
A81: 2010-12-23 | B81: 04:22:00 | C81: 0 | D81: 0 | E81: 0 | F81: 0 | G81: 0 | H81: 0
A82: 2010-12-23 | B82: 04:32:00 | C82: 0 | D82: 0 | E82: 0 | F82: 0 | G82: 0 | H82: 0
A83: 2010-12-23 | B83: 04:42:00 | C83: 0 | D83: 0 | E83: 0 | F83: 0 | G83: 0 | H83: 0
A84: 2010-12-23 | B84: 04:52:00 | C84: 0 | D84: 0 | E84: 0 | F84: 0 | G84: 0 | H84: 0
A85: 2010-12-23 | B85: 05:02:00 | C85: 0 | D85: 0 | E85: 0 | F85: 0 | G85: 0 | H85: 0
A86: 2010-12-23 | B86: 05:12:00 | C86: 0 | D86: 0 | E86: 0 | F86: 0 | G86: 0 | H86: 0
A87: 2010-12-23 | B87: 05:22:00 | C87: 0 | D87: 0 | E87: 0 | F87: 0 | G87: 0 | H87: 0
A88: 2010-12-23 | B88: 05:32:00 | C88: 0 | D88: 0 | E88: 0 | F88: 0 | G88: 0 | H88: 0
A89: 2010-12-23 | B89: 05:42:00 | C89: 0 | D89: 0 | E89: 0 | F89: 0 | G89: 0 | H89: 0
A90: 2010-12-23 | B90: 05:52:00 | C90: 0 | D90: 0 | E90: 0 | F90: 0 | G90: 0 | H90: 0
A91: 2010-12-23 | B91: 06:02:00 | C91: 0 | D91: 0 | E91: 0 | F91: 0 | G91: 0 | H91: 0
A92: 2010-12-23 | B92: 06:12:00 | C92: 0 | D92: 0 | E92: 0 | F92: 0 | G92: 0 | H92: 0
A93: 2010-12-23 | B93: 06:22:00 | C93: 0 | D93: 0 | E93: 0 | F93: 0 | G93: 0 | H93: 0
A94: 2010-12-23 | B94: 06:32:00 | C94: 0 | D94: 0 | E94: 0 | F94: 0 | G94: 0 | H94: 0
A95: 2010-12-23 | B95: 06:42:00 | C95: 0 | D95: 0 | E95: 0 | F95: 0 | G95: 0 | H95: 0
A96: 2010-12-23 | B96: 06:52:00 | C96: 0 | D96: 0 | E96: 0 | F96: 0 | G96: 0 | H96: 0
A97: 2010-12-23 | B97: 07:02:00 | C97: 0 | D97: 0 | E97: 0 | F97: 0 | G97: 0 | H97: 0
A98: 2010-12-23 | B98: 07:12:00 | C98: 0 | D98: 0 | E98: 0 | F98: 0 | G98: 0 | H98: 0
A99: 2010-12-23 | B99: 07:22:00 | C99: 0 | D99: 0 | E99: 0 | F99: 0 | G99: 0 | H99: 0
A100: 2010-12-23 | B100: 07:32:00 | C100: 0 | D100: 0 | E100: 0 | F100: 0 | G100: 0 | H100: 0
A101: 2010-12-23 | B101: 07:42:00 | C101: 0 | D101: 0 | E101: 0 | F101: 0 | G101: 0 | H101: 0
A102: 2010-12-23 | B102: 07:52:00 | C102: 0 | D102: 0 | E102: 0 | F102: 0 | G102: 0 | H102: 0
A103: 2010-12-23 | B103: 08:02:00 | C103: 0 | D103: 0 | E103: 0 | F103: 0 | G103: 0 | H103: 0
A104: 2010-12-23 | B104: 08:12:00 | C104: 0 | D104: 0 | E104: 0 | F104: 0 | G104: 0 | H104: 0
A105: 2010-12-23 | B105: 08:22:00 | C105: 0 | D105: 0 | E105: 0 | F105: 0 | G105: 0 | H105: 0
A106: 2010-12-23 | B106: 08:32:00 | C106: 0 | D106: 0 | E106: 0 | F106: 0 | G106: 0 | H106: 0
A107: 2010-12-23 | B107: 08:42:00 | C107: 0 | D107: 0 | E107: 0 | F107: 0 | G107: 0 | H107: 0
A108: 2010-12-23 | B108: 08:52:00 | C108: 0 | D108: 0 | E108: 0 | F108: 0 | G108: 0 | H108: 0
A109: 2010-12-23 | B109: 09:02:00 | C109: 0 | D109: 0 | E109: 0 | F109: 0 | G109: 0 | H109: 0
A110: 2010-12-23 | B110: 09:12:00 | C110: 0 | D110: 0 | E110: 0 | F110: 0 | G110: 0 | H110: 0
A111: 2010-12-23 | B111: 09:22:00 | C111: 0 | D111: 0 | E111: 0 | F111: 0 | G111: 0 | H111: 0
A112: 2010-12-23 | B112: 09:32:00 | C112: 0 | D112: 0 | E112: 0 | F112: 0 | G112: 0 | H112: 0
A113: 2010-12-23 | B113: 09:42:00 | C113: 0 | D113: 0 | E113: 0 | F113: 0 | G113: 0 | H113: 0
A114: 2010-12-23 | B114: 09:52:00 | C114: 0 | D114: 0 | E114: 0 | F114: 0 | G114: 0 | H114: 0
A115: 2010-12-23 | B115: 10:02:00 | C115: 0 | D115: 0 | E115: 0 | F115: 0 | G115: 0 | H115: 0
A116: 2010-12-23 | B116: 10:12:00 | C116: 0 | D116: 0 | E116: 0 | F116: 0 | G116: 0 | H116: 0
A117: 2010-12-23 | B117: 10:22:00 | C117: 0 | D117: 0 | E117: 0 | F117: 0 | G117: 0 | H117: 0
A118: 2010-12-23 | B118: 10:32:00 | C118: 0 | D118: 0 | E118: 0 | F118: 0 | G118: 0 | H118: 0
A119: 2010-12-23 | B119: 10:42:00 | C119: 0 | D119: 0 | E119: 0 | F119: 0 | G119: 0 | H119: 0
A120: 2010-12-23 | B120: 10:52:00 | C120: 0 | D120: 0 | E120: 0 | F120: 0 | G120: 0 | H120: 0
A121: 2010-12-23 | B121: 11:02:00 | C121: 0 | D121: 0 | E121: 0 | F121: 0 | G121: 0 | H121: 0
A122: 2010-12-23 | B122: 11:12:00 | C122: 0 | D122: 0 | E122: 0 | F122: 0 | G122: 0 | H122: 0
A123: 2010-12-23 | B123: 11:22:00 | C123: 0 | D123: 0 | E123: 0 | F123: 0 | G123: 0 | H123: 0
A124: 2010-12-23 | B124: 11:32:00 | C124: 0 | D124: 0 | E124: 0 | F124: 0 | G124: 0 | H124: 0
A125: 2010-12-23 | B125: 11:42:00 | C125: 0 | D125: 0 | E125: 0 | F125: 0 | G125: 0 | H125: 0
A126: 2010-12-23 | B126: 11:52:00 | C126: 0 | D126: 0 | E126: =C126*0.098 -> 0 | F126: 0 | G126: =E126/200 -> 0 | H126: 0
A127: 2010-12-23 | B127: 12:02:00 | C127: 0 | D127: 0 | E127: 0 | F127: 0 | G127: 0 | H127: 0
A128: 2010-12-23 | B128: 12:12:00 | C128: 0 | D128: 0 | E128: 0 | F128: 0 | G128: 0 | H128: 0
A129: 2010-12-23 | B129: 12:22:00 | C129: 0 | D129: 0 | E129: 0 | F129: 0 | G129: 0 | H129: 0
A130: 2010-12-23 | B130: 12:32:00 | C130: 0 | D130: 0 | E130: 0 | F130: 0 | G130: 0 | H130: 0
A131: 2010-12-23 | B131: 12:42:00 | C131: 0 | D131: 0 | E131: 0 | F131: 0 | G131: 0 | H131: 0
A132: 2010-12-23 | B132: 12:52:00 | C132: 0 | D132: 0 | E132: 0 | F132: 0 | G132: 0 | H132: 0
A133: 2010-12-23 | B133: 13:02:00 | C133: 0 | D133: 0 | E133: 0 | F133: 0 | G133: 0 | H133: 0
A134: 2010-12-23 | B134: 13:12:00 | C134: 0 | D134: 0 | E134: 0 | F134: 0 | G134: 0 | H134: 0
A135: 2010-12-23 | B135: 13:22:00 | C135: 0 | D135: 0 | E135: 0 | F135: 0 | G135: 0 | H135: 0
A136: 2010-12-23 | B136: 13:32:00 | C136: 0 | D136: 0 | E136: 0 | F136: 0 | G136: 0 | H136: 0
A137: 2010-12-23 | B137: 13:42:00 | C137: 0 | D137: 0 | E137: 0 | F137: 0 | G137: 0 | H137: 0
A138: 2010-12-23 | B138: 13:52:00 | C138: 0 | D138: 0 | E138: 0 | F138: 0 | G138: 0 | H138: 0
A139: 2010-12-23 | B139: 14:02:00 | C139: 0 | D139: 0 | E139: 0 | F139: 0 | G139: 0 | H139: 0
A140: 2010-12-23 | B140: 14:12:00 | C140: 0 | D140: 0 | E140: 0 | F140: 0 | G140: 0 | H140: 0
A141: 2010-12-23 | B141: 14:22:00 | C141: 0 | D141: 0 | E141: 0 | F141: 0 | G141: 0 | H141: 0
A142: 2010-12-23 | B142: 14:32:00 | C142: 0 | D142: 0 | E142: 0 | F142: 0 | G142: 0 | H142: 0
A143: 2010-12-23 | B143: 14:42:00 | C143: 0 | D143: 0 | E143: 0 | F143: 0 | G143: 0 | H143: 0
A144: 2010-12-23 | B144: 14:52:00 | C144: 0 | D144: 0 | E144: 0 | F144: 0 | G144: 0 | H144: 0
A145: 2010-12-23 | B145: 15:02:00 | C145: 0 | D145: 0 | E145: 0 | F145: 0 | G145: 0 | H145: 0
A146: 2010-12-23 | B146: 15:12:00 | C146: 0 | D146: 0 | E146: 0 | F146: 0 | G146: 0 | H146: 0
A147: 2010-12-23 | B147: 15:22:00 | C147: 0 | D147: 0 | E147: 0 | F147: 0 | G147: 0 | H147: 0
A148: 2010-12-23 | B148: 15:32:00 | C148: 0 | D148: 0 | E148: 0 | F148: 0 | G148: 0 | H148: 0
A149: 2010-12-23 | B149: 15:42:00 | C149: 0 | D149: 0 | E149: 0 | F149: 0 | G149: 0 | H149: 0
A150: 2010-12-23 | B150: 15:52:00 | C150: 0 | D150: 0 | E150: 0 | F150: 0 | G150: 0 | H150: 0
A151: 2010-12-23 | B151: 16:02:00 | C151: 0 | D151: 0 | E151: 0 | F151: 0 | G151: 0 | H151: 0
A152: 2010-12-23 | B152: 16:12:00 | C152: 0 | D152: 0 | E152: 0 | F152: 0 | G152: 0 | H152: 0
A153: 2010-12-23 | B153: 16:22:00 | C153: 0 | D153: 0 | E153: 0 | F153: 0 | G153: 0 | H153: 0
A154: 2010-12-23 | B154: 16:32:00 | C154: 0 | D154: 0 | E154: 0 | F154: 0 | G154: 0 | H154: 0
A155: 2010-12-23 | B155: 16:42:00 | C155: 0 | D155: 0 | E155: 0 | F155: 0 | G155: 0 | H155: 0
A156: 2010-12-23 | B156: 16:52:00 | C156: 0 | D156: 0 | E156: 0 | F156: 0 | G156: 0 | H156: 0
A157: 2010-12-23 | B157: 17:02:00 | C157: 0 | D157: 0 | E157: 0 | F157: 0 | G157: 0 | H157: 0
A158: 2010-12-23 | B158: 17:12:00 | C158: 0 | D158: 0 | E158: 0 | F158: 0 | G158: 0 | H158: 0
A159: 2010-12-23 | B159: 17:22:00 | C159: 0 | D159: 0 | E159: 0 | F159: 0 | G159: 0 | H159: 0
A160: 2010-12-23 | B160: 17:32:00 | C160: 0 | D160: 0 | E160: 0 | F160: 0 | G160: 0 | H160: 0
A161: 2010-12-23 | B161: 17:42:00 | C161: 0 | D161: 0 | E161: 0 | F161: 0 | G161: 0 | H161: 0
A162: 2010-12-23 | B162: 17:52:00 | C162: 0 | D162: 0 | E162: 0 | F162: 0 | G162: 0 | H162: 0
A163: 2010-12-23 | B163: 18:02:00 | C163: 0 | D163: 0 | E163: 0 | F163: 0 | G163: 0 | H163: 0
A164: 2010-12-23 | B164: 18:12:00 | C164: 0 | D164: 0 | E164: 0 | F164: 0 | G164: 0 | H164: 0
A165: 2010-12-23 | B165: 18:22:00 | C165: 0 | D165: 0 | E165: 0 | F165: 0 | G165: 0 | H165: 0
A166: 2010-12-23 | B166: 18:32:00 | C166: 0 | D166: 0 | E166: 0 | F166: 0 | G166: 0 | H166: 0
A167: 2010-12-23 | B167: 18:42:00 | C167: 0 | D167: 0 | E167: 0 | F167: 0 | G167: 0 | H167: 0
A168: 2010-12-23 | B168: 18:52:00 | C168: 0 | D168: 0 | E168: 0 | F168: 0 | G168: 0 | H168: 0
A169: 2010-12-23 | B169: 19:02:00 | C169: 0 | D169: 0 | E169: 0 | F169: 0 | G169: 0 | H169: 0
A170: 2010-12-23 | B170: 19:12:00 | C170: 0 | D170: 0 | E170: 0 | F170: 0 | G170: 0 | H170: 0
A171: 2010-12-23 | B171: 19:22:00 | C171: 0 | D171: 0 | E171: 0 | F171: 0 | G171: 0 | H171: 0
A172: 2010-12-23 | B172: 19:32:00 | C172: 0 | D172: 0 | E172: 0 | F172: 0 | G172: 0 | H172: 0
A173: 2010-12-23 | B173: 19:42:00 | C173: 0 | D173: 0 | E173: 0 | F173: 0 | G173: 0 | H173: 0
A174: 2010-12-23 | B174: 19:52:00 | C174: 0 | D174: 0 | E174: 0 | F174: 0 | G174: 0 | H174: 0
A175: 2010-12-23 | B175: 20:02:00 | C175: 0 | D175: 0 | E175: 0 | F175: 0 | G175: 0 | H175: 0
A176: 2010-12-23 | B176: 20:12:00 | C176: 0 | D176: 0 | E176: 0 | F176: 0 | G176: 0 | H176: 0
A177: 2010-12-23 | B177: 20:22:00 | C177: 0 | D177: 0 | E177: 0 | F177: 0 | G177: 0 | H177: 0
A178: 2010-12-23 | B178: 20:32:00 | C178: 0 | D178: 0 | E178: 0 | F178: 0 | G178: 0 | H178: 0
A179: 2010-12-23 | B179: 20:42:00 | C179: 0 | D179: 0 | E179: 0 | F179: 0 | G179: 0 | H179: 0
A180: 2010-12-23 | B180: 20:52:00 | C180: 0 | D180: 0 | E180: 0 | F180: 0 | G180: 0 | H180: 0
A181: 2010-12-23 | B181: 21:02:00 | C181: 0 | D181: 0 | E181: 0 | F181: 0 | G181: 0 | H181: 0
A182: 2010-12-23 | B182: 21:12:00 | C182: 0 | D182: 0 | E182: 0 | F182: 0 | G182: 0 | H182: 0
A183: 2010-12-23 | B183: 21:22:00 | C183: 0 | D183: 0 | E183: 0 | F183: 0 | G183: 0 | H183: 0
A184: 2010-12-23 | B184: 21:32:00 | C184: 0 | D184: 0 | E184: 0 | F184: 0 | G184: 0 | H184: 0
A185: 2010-12-23 | B185: 21:42:00 | C185: 0 | D185: 0 | E185: 0 | F185: 0 | G185: 0 | H185: 0
A186: 2010-12-23 | B186: 21:52:00 | C186: 0 | D186: 0 | E186: 0 | F186: 0 | G186: 0 | H186: 0
A187: 2010-12-23 | B187: 22:02:00 | C187: 0 | D187: 0 | E187: 0 | F187: 0 | G187: 0 | H187: 0
A188: 2010-12-23 | B188: 22:12:00 | C188: 0 | D188: 0 | E188: 0 | F188: 0 | G188: 0 | H188: 0
A189: 2010-12-23 | B189: 22:22:00 | C189: 0 | D189: 0 | E189: 0 | F189: 0 | G189: 0 | H189: 0
A190: 2010-12-23 | B190: 22:32:00 | C190: 0 | D190: 0 | E190: =C190*0.098 -> 0 | F190: 0 | G190: =E190/200 -> 0 | H190: 0
A191: 2010-12-23 | B191: 22:42:00 | C191: 0 | D191: 0 | E191: 0 | F191: 0 | G191: 0 | H191: 0
A192: 2010-12-23 | B192: 22:52:00 | C192: 0 | D192: 0 | E192: 0 | F192: 0 | G192: 0 | H192: 0
A193: 2010-12-23 | B193: 23:02:00 | C193: 0 | D193: 0 | E193: 0 | F193: 0 | G193: 0 | H193: 0
A194: 2010-12-23 | B194: 23:12:00 | C194: 0 | D194: 0 | E194: 0 | F194: 0 | G194: 0 | H194: 0
A195: 2010-12-23 | B195: 23:22:00 | C195: 0 | D195: 0 | E195: 0 | F195: 0 | G195: 0 | H195: 0
A196: 2010-12-23 | B196: 23:32:00 | C196: 0 | D196: 0 | E196: 0 | F196: 0 | G196: 0 | H196: 0
A197: 2010-12-23 | B197: 23:42:00 | C197: 0 | D197: 0 | E197: 0 | F197: 0 | G197: 0 | H197: 0
A198: 2010-12-23 | B198: 23:52:00 | C198: 0 | D198: 0 | E198: 0 | F198: 0 | G198: 0 | H198: 0
A199: 2010-12-24 | B199: 00:02:00 | C199: 0 | D199: 0 | E199: 0 | F199: 0 | G199: 0 | H199: 0
A200: 2010-12-24 | B200: 00:12:00 | C200: 0 | D200: 0 | E200: 0 | F200: 0 | G200: 0 | H200: 0
... 4300 more rows
